[Event "III Menorca Open-A 2024"]
[Site "Ciutadella Menorca"]
[Date "2024.04.02"]
[Round "1.1"]
[White "Rebers, Eugene"]
[Black "Erigaisi Arjun"]
[Result "0-1"]
[ECO "A21"]
[WhiteElo "2206"]
[BlackElo "2748"]
[Annotator "TA"]
[PlyCount "60"]
[EventDate "2024.04.02"]
[EventType "swiss"]
[EventCountry "ESP"]
[SourceTitle "playchess.com"]
[Source "ChessBase"]
[SourceQuality "1"]
[TimeControl "5400+30"]

{[%evp 9,60,22,39,3,7,13,11,12,11,9,42,0,0,0,3,6,9,10,27,-1,0,-15,10,3,12,-43,-36,-36,-43,-42,-39,-41,-42,-47,-34,-35,-41,-54,-64,-63,-64,-200,-64,-322,-323,-363,-363,-360,-353,-355,-364,-375,-345]} 1. c4 {[%emt 0:00:04]} e5 {[%emt 0:01:37]} 2. g3 {[%emt 0:00:17]} d6 {[%emt 0:00:13]} 3. Nc3 {[%emt 0:00:32]} f5 {[%emt 0:00:22]} 4. d4 {[%emt 0:02:02]} Be7 {[%emt 0:00:37][%cal Bf8e7,Be7d8,Bd8c7][%mdl 32]} 5. Bg2 {[%emt 0:02:34]} c6 {[%emt 0:04:21]} 6. dxe5 {[%emt 0:02:05]} dxe5 {[%emt 0:00:05]} 7. Qxd8+ {[%emt 0:00:05]} Bxd8 {[%emt 0:00:06]} 8. Nf3 {[%emt 0:00:14] The position is equal.} Bc7 {[%emt 0:06:18]} 9. e4 {[%emt 0:13:55]} Nf6 {[%emt 0:01:46]} 10. O-O {[%emt 0:00:40]} O-O {[%emt 0:01:50]} 11. b3 {[%emt 0:20:02]} Na6 {[%emt 0:02:02]} 12. Ba3 {[%emt 0:09:47]} Rd8 {[%emt 0:03:11]} 13. exf5 {[%emt 0:11:55]} Bxf5 {[%emt 0:01:00]} 14. Ng5 {[%emt 0:13:53]} Rd4 {[%emt 0:15:32]} 15. Na4 {[%emt 0:11:05]} Rad8 {[%emt 0:06:17]} 16. Nf3 {[%emt 0:02:08]} Rd3 {[%emt 0:05:41]} 17. Nc5 {[%emt 0:00:27] Inhibits e4.} (17. Rae1 $11) 17... Nxc5 $15 {[%emt 0:00:09]} 18. Bxc5 {[%emt 0:00:05][%cal Of1e1]} e4 {[%emt 0:00:59]} 19. Nh4 {[%emt 0:02:16]} Bc8 {[%emt 0:01:29]} 20. Be7 {[%emt 0:02:13]} Re8 {[%emt 0:00:06]} 21. Bxf6 {[%emt 0:00:11]} gxf6 {[%emt 0:00:04]} 22. Rfe1 {[%emt 0:02:52]} f5 {[%emt 0:03:13]} 23. Rad1 {[%emt 0:00:46]} Rxd1 {[%emt 0:01:02]} 24. Rxd1 {[%emt 0:00:05]} Kf7 $36 {[%emt 0:00:05][%mdl 2048] aiming for ...f4. Black has good play.} 25. Kf1 {[%emt 0:00:50] [#]} (25. Bh3 $15 Kf6 26. Kf1) 25... Kf6 {[%emt 0:00:08]} ({Better is} 25... f4 $1 $19 {And now ...f3 would win.} 26. Kg1 Bd8) 26. Ke2 $2 {[%emt 0:00:10][%mdl 8192]} (26. Bh3 $15) 26... f4 $19 {[%emt 0:00:08]} 27. f3 {[%emt 0:01:53] Inhibits Bg4.} fxg3 {[%emt 0:00:14] Black is winning.} 28. fxe4 {[%emt 0:00:22]} gxh2 {[%emt 0:00:59]} 29. Rf1+ {[%emt 0:00:06]} Kg5 {[%emt 0:00:10]} 30. Nf5 {[%emt 0:01:12]} Rd8 {[%emt 0:00:45] Weighted Error Value: White=0.34/Black=0.12 (very precise) .  Loses game:     	White=1     	---        Mistake:       	White=2     	Black=1      Inaccurate:     	White=2     	Black=1      OK:         	White=9     	Black=8      Best:        	---       	Black=3} 0-1

[Event "III Menorca Open-A 2024"]
[Site "Ciutadella Menorca"]
[Date "2024.04.02"]
[Round "1.2"]
[White "Nihal Sarin"]
[Black "Alfonso Durban, Xavier"]
[Result "1-0"]
[ECO "D55"]
[WhiteElo "2698"]
[BlackElo "2202"]
[Annotator "TA"]
[PlyCount "53"]
[EventDate "2024.04.02"]
[EventType "swiss"]
[EventCountry "ESP"]
[SourceTitle "playchess.com"]
[Source "ChessBase"]
[SourceQuality "1"]
[TimeControl "5400+30"]

{[%evp 15,53,0,17,16,43,33,43,36,36,35,36,0,14,0,19,-6,-14,-31,-10,-19,31,-32,195,204,220,220,220,186,204,225,215,233,243,243,243,222,236,225,225,229]} 1. Nf3 {[%emt 0:01:25]} d5 {[%emt 0:00:39]} 2. d4 {[%emt 0:00:28]} Nf6 {[%emt 0:00:28]} 3. c4 {[%emt 0:00:09]} e6 {[%emt 0:00:26]} 4. Nc3 {[%emt 0:00:22]} Be7 {[%emt 0:01:21]} 5. Bg5 {[%emt 0:00:28]} O-O {[%emt 0:01:18]} 6. e3 {[%emt 0:00:42]} h6 {[%emt 0:00:07]} 7. Bxf6 {[%emt 0:00:04]} Bxf6 {[%emt 0:00:05]} 8. Qc2 {[%emt 0:00:05]} b6 {[%emt 0:13:52]} 9. O-O-O {[%emt 0:04:07]} Bb7 {[%emt 0:06:40]} 10. cxd5 {[%emt 0:01:16]} exd5 {[%emt 0:01:47]} 11. h4 {[%emt 0:00:06] White is slightly better.} Bc8 {[%emt 0:05:03] Against g4} 12. Bd3 {[%emt 0:03:51]} Nc6 {[%emt 0:03:48]} 13. a3 {[%emt 0:03:25] Repels Nb4} (13. Nxd5 {with more complications.} Qxd5 14. Bh7+ Kh8 15. Be4) 13... Ne7 {[%emt 0:00:43]} 14. e4 {[%emt 0:04:18]} dxe4 {[%emt 0:05:28]} 15. Bxe4 {[%emt 0:00:53]} Rb8 {[%emt 0:10:19]} 16. Ne5 {[%emt 0:02:11]} c5 {[%emt 0:18:49]} 17. Nb5 {[%emt 0:02:58][%csl LRa7,LRc5] A dynamic duo of knights.} (17. dxc5 Qc7 18. f4 bxc5 $15) 17... Be6 {[%emt 0:01:36]} (17... Bd7 $1 $11 18. dxc5 Bxe5) 18. Kb1 {[%emt 0:07:25]} (18. dxc5 Qc8 19. Nxf7 Bxf7 $17) (18. Rhe1 $14) 18... cxd4 $2 {[%emt 0:02:17] [#] Loses the game.} (18... a6 $15 {keeps the upper hand.} 19. d5 (19. dxc5 Qc8 $17) 19... Bf5 (19... Bxe5 20. dxe6 Qc8 21. exf7+ Rxf7 22. Nd6 $14) (19... Bxd5 20. Bxd5 Nxd5 21. Nc6 $11) (19... Nxd5 20. Nc6 $11) 20. Bxf5 Bxe5) 19. Nxd4 $1 $18 {[%emt 0:00:32] White is clearly better.} Qc8 {[%emt 0:02:10] Black is weak on the light squares} 20. Nxe6 {[%emt 0:01:32]} Qxe6 {[%emt 0:00:28]} 21. Nd7 {[%emt 0:00:09][%cal Oh1e1]} Rbc8 {[%emt 0:15:33]} 22. Qd3 {[%emt 0:01:06][%cal Oh1e1] Black must now prevent Rhe1!} ({But not} 22. Nxf8 Rxc2 23. Bh7+ (23. Nxe6 Rxb2+ 24. Kc1 fxe6 $16) 23... Kh8 24. Nxe6 Rxb2+ 25. Kc1 Rxf2 (25... Kxh7 $2 {loses.} 26. Ng5+ Kg6 27. Ne4 $18)) 22... Rfe8 {[%emt 0:02:55][%cal Of6d4]} 23. Rhe1 {[%emt 0:00:50] Bh7+ would now be deadly. Active counter play!} Qc4 {[%emt 0:04:07] [#]} 24. Bh7+ {[%emt 0:07:35]} Kh8 {[%emt 0:00:05]} 25. Nxf6 {[%emt 0:00:11]} gxf6 {[%emt 0:00:29]} 26. Qxc4 {[%emt 0:00:05]} Rxc4 {[%emt 0:00:10] [#]} 27. Bf5 $1 {[%emt 0:00:04] Weighted Error Value: White=0.10 (very precise) /Black=0.32.  Loses game:     	---       	Black=1      Mistake:       	White=1     	Black=1      Inaccurate:     	---       	Black=1      OK:         	White=7     	Black=7      Best:        	White=3     	Black=1      Strong:       	White=1     	---} 1-0

[Event "III Menorca Open-A 2024"]
[Site "Ciutadella Menorca"]
[Date "2024.04.02"]
[Round "1.3"]
[White "Bolat, Inayat"]
[Black "Fedoseev, Vladimir"]
[Result "0-1"]
[ECO "C19"]
[WhiteElo "2208"]
[BlackElo "2690"]
[Annotator "TA"]
[PlyCount "64"]
[EventDate "2024.04.02"]
[EventType "swiss"]
[EventCountry "ESP"]
[SourceTitle "playchess.com"]
[Source "ChessBase"]
[SourceQuality "1"]
[TimeControl "5400+30"]

{[%evp 14,64,4,3,6,10,10,0,17,16,16,-39,-21,-47,-45,-43,-45,-43,-43,-48,-50,-140,-122,-140,-147,-145,-145,-145,-145,-240,-229,-354,-337,-472,-471,-478,-464,-461,-474,-531,-538,-727,-638,-647,-647,-601,-628,-747,-740,-1047,-1043,-1491,-1476]} 1. e4 {[%emt 0:00:03]} e6 {[%emt 0:02:45]} 2. d4 {[%emt 0:00:56]} d5 {[%emt 0:00:11]} 3. Nc3 {[%emt 0:00:35]} Bb4 {[%emt 0:00:26]} 4. e5 {[%emt 0:00:26]} c5 {[%emt 0:00:28]} 5. a3 {[%emt 0:05:49]} Bxc3+ {[%emt 0:00:22]} 6. bxc3 {[%emt 0:00:03]} Ne7 {[%emt 0:00:20]} 7. Nf3 {[%emt 0:00:33]} Qa5 {[%emt 0:05:54]} 8. Bd2 {[%emt 0:04:55]} Qc7 {[%emt 0:00:01]} 9. Bd3 {[%emt 0:02:57] Black is weak on the dark squares} c4 {[%emt 0:07:18]} 10. Be2 {[%emt 0:00:07]} Nd7 {[%emt 0:00:06][%cal Bb8d7,Bd7b6,Bb6a4][%mdl 32] The position is equal.} 11. Nh4 {[%emt 1:19:36]} Nb6 {[%emt 0:03:16]} 12. a4 {[%emt 0:00:00]} ({White should try} 12. O-O $11) 12... a5 $15 {[%emt 0:05:17]} 13. Bc1 {[%emt 0:00:00]} Bd7 {[%emt 0:00:24]} 14. Ba3 {[%emt 0:00:00]} Qd8 {[%emt 0:06:24]} ({Much weaker is} 14... Bxa4 15. g4 $11) 15. Qd2 {[%emt 0:00:00]} Nxa4 {[%emt 0:01:34]} 16. O-O {[%emt 0:00:00]} b5 {[%emt 0:00:11]} 17. Rab1 {[%emt 0:00:00] Black keeps a firm grip on the game.} ({Better is} 17. g3 $15) 17... Nc6 $17 {[%emt 0:06:18]} 18. g3 {[%emt 0:00:00][%cal Oa3d6] [#]} Nxc3 $1 {[%emt 0:02:25][%mdl 512]} 19. Qxc3 {[%emt 0:00:00]} b4 {[%emt 0:00:01]} 20. Qe3 {[%emt 0:00:00]} bxa3 {[%emt 0:00:10]} 21. f4 {[%emt 0:00:00]} (21. Nf3 $17) 21... Rb8 $19 {[%emt 0:02:01] Strongly threatening ...Rxb1.} 22. Qxa3 {[%emt 0:00:39]} (22. Ra1 $142) 22... Nxd4 {[%emt 0:01:39]} 23. Bg4 {[%emt 0:00:02]} (23. Nf3 $142 Nxc2 (23... Nxe2+ $2 24. Kf2 $19) 24. Qc3 Rxb1 25. Rxb1) 23... Nxc2 {[%emt 0:03:19] Black is clearly winning.} 24. Qc3 {[%emt 0:00:58]} Rxb1 {[%emt 0:00:39]} 25. Rxb1 {[%emt 0:00:02]} Nb4 {[%emt 0:00:11]} 26. f5 {[%emt 0:01:32]} Qg5 {[%emt 0:03:17]} 27. Qf3 {[%emt 0:02:11]} O-O {[%emt 0:02:03]} 28. Rf1 {[%emt 0:00:52]} exf5 {[%emt 0:01:09]} 29. Bxf5 {[%emt 0:00:05]} Bxf5 {[%emt 0:00:23]} 30. Nxf5 {[%emt 0:00:02]} g6 {[%emt 0:00:17]} 31. Nd6 {[%emt 0:02:48]} Qxe5 {[%emt 0:00:16]} 32. Nxf7 {[%emt 0:00:31]} Qg7 {[%emt 0:00:21] Weighted Error Value: White=0.85/Black=0.05 (flawless) .  Mistake:       	White=5     	---        Inaccurate:     	White=2     	---        OK:         	White=5     	Black=9      Best:        	---       	Black=3} 0-1

[Event "III Menorca Open-A 2024"]
[Site "Ciutadella Menorca"]
[Date "2024.04.02"]
[Round "1.5"]
[White "Bradbury, Neil H"]
[Black "Aravindh, Chithambaram VR."]
[Result "0-1"]
[ECO "A50"]
[WhiteElo "2197"]
[BlackElo "2662"]
[Annotator "TA"]
[PlyCount "70"]
[EventDate "2024.04.02"]
[EventType "swiss"]
[EventCountry "ESP"]
[SourceTitle "playchess.com"]
[Source "ChessBase"]
[SourceQuality "1"]
[TimeControl "5400+30"]

{[%evp 13,70,4,17,12,23,22,19,6,12,8,23,6,6,8,33,28,23,0,0,-15,-13,-12,-24,-20,0,-18,-14,-20,-20,-39,-14,-58,-14,-20,0,-64,-19,-52,-58,-64,-70,-80,-69,-75,-58,-72,-30,-41,-60,-62,-62,-95,-86,-306,-316,-343,-362,-483,-456]} 1. d4 {[%emt 0:00:40]} Nf6 {[%emt 0:00:15]} 2. Nf3 {[%emt 0:00:31]} b6 {[%emt 0:00:48]} 3. g3 {[%emt 0:00:26]} Bb7 {[%emt 0:00:11]} 4. Bg2 {[%emt 0:00:14]} g6 {[%emt 0:00:50]} 5. O-O {[%emt 0:02:01]} Bg7 {[%emt 0:00:08]} 6. c4 {[%emt 0:02:41]} O-O {[%emt 0:00:09]} 7. Nc3 {[%emt 0:02:14]} Ne4 {[%emt 0:00:13]} 8. Bd2 {[%emt 0:02:51]} Nxd2 {[%emt 0:04:29]} 9. Qxd2 {[%emt 0:00:18]} d6 {[%emt 0:00:12]} 10. Rfd1 {[%emt 0:04:51] The position is equal.} e6 {[%emt 0:05:31]} 11. Rac1 {[%emt 0:10:02]} Nd7 {[%emt 0:01:12]} 12. Ne1 {[%emt 0:00:33]} Qc8 {[%emt 0:02:09]} 13. e3 {[%emt 0:14:50]} f5 {[%emt 0:14:02]} 14. b4 {[%emt 0:10:48]} Rf7 {[%emt 0:01:13]} 15. c5 {[%emt 0:09:58] [#] Strongly threatening c6.} bxc5 {[%emt 0:06:30]} 16. bxc5 {[%emt 0:00:04] c6 would now be deadly.} Bxg2 {[%emt 0:13:04]} 17. Nxg2 {[%emt 0:09:38] Threatens to win with cxd6.} dxc5 {[%emt 0:00:11]} 18. Nf4 {[%emt 0:02:08]} cxd4 {[%emt 0:15:06]} 19. exd4 {[%emt 0:03:44]} Nf8 {[%emt 0:00:33]} 20. Qe2 {[%emt 0:05:39]} Bh6 {[%emt 0:08:09]} 21. Qe5 {[%emt 0:05:04]} Qd7 {[%emt 0:04:08]} 22. Nb5 {[%emt 0:03:54]} Bg7 {[%emt 0:01:54] Inhibits Rxc7.} 23. Qc5 {[%emt 0:03:04][%cal Od4d5]} Bh6 {[%emt 0:01:46]} 24. Qe5 {[%emt 0:01:36][%cal Rc1c7]} a6 {[%emt 0:01:12]} 25. Nc3 {[%emt 0:01:36]} (25. Nxc7 $2 {is the wrong capture.} Bxf4 (25... Ra7 26. Ncxe6 Nxe6 27. Nxe6 $14) 26. Qxf4 Ra7 $19) 25... Rb8 {[%emt 0:00:51]} 26. d5 {[%emt 0:02:00]} Bg7 {[%emt 0:01:08] Prevents dxe6.} 27. Qe2 {[%emt 0:00:01]} e5 {[%emt 0:00:08]} 28. Ng2 {[%emt 0:02:08][%cal Bf4g2,Bg2e3,Be3c4][%mdl 32]} Qd6 {[%emt 0:08:48]} 29. Ne3 {[%emt 0:00:01]} Rd8 {[%emt 0:00:13]} 30. Nc4 {[%emt 0:00:15]} Qf6 {[%emt 0:00:05]} 31. Na5 {[%emt 0:00:19]} e4 {[%emt 0:00:36]} 32. Nc6 {[%emt 0:00:02]} Re8 {[%emt 0:00:35]} 33. Qxa6 $2 {[%emt 0:01:13]} (33. d6 $17 cxd6 34. Nd5) 33... f4 $19 {[%emt 0:00:04] Hoping for ...fxg3.} 34. Qe2 {[%emt 0:01:00] [#]} f3 $1 {[%emt 0:01:20]} (34... e3 $2 35. f3 fxg3 36. hxg3 $17) 35. Qf1 {[%emt 0:00:34][%cal Od5d6]} e3 {[%emt 0:00:10] Weighted Error Value: White=0.31/Black=0.09 (flawless) .  Loses game:     	White=1     	---        Inaccurate:     	White=4     	Black=3      OK:         	White=3     	Black=14     Best:        	---       	Black=2      Strong:       	---       	Black=1} 0-1

[Event "III Menorca Open-A 2024"]
[Site "Ciutadella Menorca"]
[Date "2024.04.02"]
[Round "1.6"]
[White "Alekseenko, Kirill"]
[Black "Marin Ferragut, Pau"]
[Result "1-0"]
[ECO "B51"]
[WhiteElo "2650"]
[BlackElo "2165"]
[Annotator "TA"]
[PlyCount "139"]
[EventDate "2024.04.02"]
[EventType "swiss"]
[EventCountry "ESP"]
[SourceTitle "playchess.com"]
[Source "ChessBase"]
[SourceQuality "1"]
[TimeControl "5400+30"]

{[%evp 9,139,15,0,0,25,0,0,-23,0,-22,-10,-1,4,20,28,-14,-6,-14,0,0,0,0,0,0,0,0,16,0,36,24,1,17,22,0,5,-16,0,-48,-43,-59,-4,-66,-70,-74,-81,-93,-64,-67,-86,-85,-90,-96,-80,-204,-80,-72,-60,-52,-61,-61,-55,-42,-49,-47,-20,-19,-137,25,51,43,192,191,666,537,508,217,225,207,252,211,208,140,140,134,117,102,168,137,149,0,0,0,0,0,0,0,0,0,0,0,200,200,200,200,365,351,509,637,646,615,1054,709,1193,1289,1590,1302,1269,1000,1434,1050,822,665,651,533,456,365,1230,1104,29991,29991,29998,29999]} 1. e4 {[%emt 0:00:08]} c5 {[%emt 0:00:25]} 2. Nf3 {[%emt 0:00:20]} d6 {[%emt 0:00:49]} 3. Bb5+ {[%emt 0:00:36]} Nd7 {[%emt 0:00:53]} 4. d4 {[%emt 0:01:32]} cxd4 {[%emt 0:00:23]} 5. Nxd4 {[%emt 0:00:25]} Ngf6 {[%emt 0:00:41]} 6. Bd3 {[%emt 0:01:15]} g6 {[%emt 0:02:52]} 7. Nc3 {[%emt 0:03:22]} Bg7 {[%emt 0:00:11]} 8. h3 {[%emt 0:01:54] The position is equal.} O-O {[%emt 0:00:58]} 9. O-O {[%emt 0:01:44]} a6 {[%emt 0:02:08]} 10. Be3 {[%emt 0:03:26]} Qc7 {[%emt 0:01:09]} 11. a4 {[%emt 0:03:18]} b6 {[%emt 0:02:08]} 12. Qd2 {[%emt 0:12:33]} Bb7 {[%emt 0:02:05]} 13. Rfe1 {[%emt 0:01:08]} d5 {[%emt 0:10:44]} 14. exd5 {[%emt 0:02:17]} Nxd5 {[%emt 0:00:44]} 15. Nxd5 {[%emt 0:02:01]} Bxd5 {[%emt 0:00:01]} 16. Bf1 {[%emt 0:00:17]} Bb7 {[%emt 0:02:11]} 17. Qb4 {[%emt 0:14:55]} e5 {[%emt 0:14:44]} 18. Nb3 {[%emt 0:00:31]} Rfd8 {[%emt 0:02:24]} 19. Red1 {[%emt 0:10:54]} a5 {[%emt 0:04:04]} 20. Qc4 {[%emt 0:01:11]} Bc6 {[%emt 0:02:00]} 21. Bg5 {[%emt 0:02:24]} Rdc8 {[%emt 0:02:46]} 22. Qh4 {[%emt 0:01:38]} Nf8 {[%emt 0:01:37][%cal Bd7f8,Bf8e6,Be6f4][%mdl 32]} 23. Be7 {[%emt 0:34:11]} (23. Be3 $11) 23... Ne6 $15 {[%emt 0:03:18]} 24. c3 {[%emt 0:08:45]} Qb7 {[%emt 0:04:13]} (24... Re8 $1 $15 25. Bf6 Bxf6 26. Qxf6 Rac8) 25. Nd2 {[%emt 0:03:03]} ({Better is} 25. Bf6 $11) 25... Nf4 $1 {[%emt 0:05:56][%cal Rc6g2]} 26. f3 {[%emt 0:01:12]} Nd5 $1 {[%emt 0:00:41]} 27. Ba3 {[%emt 0:04:15]} Ne3 {[%emt 0:00:09]} 28. Nc4 {[%emt 0:01:52]} Nxd1 {[%emt 0:03:17]} 29. Nd6 {[%emt 0:01:51]} Qd7 {[%emt 0:01:25]} 30. Rxd1 {[%emt 0:00:04]} Bxa4 {[%emt 0:01:30]} 31. Rd2 {[%emt 0:01:44]} (31. Rd3 $17 {keeps fighting.} Rcb8 32. Nxf7 Qxf7 33. Qxa4) 31... Bb3 {[%emt 0:29:34]} (31... b5 $19 {has better winning chances.} 32. Kh2 Rd8) 32. Bb5 $17 {[%emt 0:00:12]} Qd8 {[%emt 0:00:12]} 33. Qf2 {[%emt 0:02:16][%cal Od6e4] aiming for Ne4!} Bh6 $1 {[%emt 0:00:34]} 34. Rd3 {[%emt 0:01:09][%cal Od6e4] [#] Strongly threatening Ne4!} Qg5 $1 {[%emt 0:00:29]} 35. Nxc8 {[%emt 0:01:36]} Rxc8 {[%emt 0:00:01]} (35... Qc1+ 36. Kh2 Rxc8 37. Qxb6 $17) 36. Qxb6 {[%emt 0:01:06][%cal Ob5a6]} Qc1+ {[%emt 0:00:21]} 37. Kh2 $1 {[%emt 0:00:26] Rd8+ would kill now.} Bf4+ {[%emt 0:02:38]} 38. g3 {[%emt 0:00:03]} Bg5 {[%emt 0:02:42][%cal Oe5e4] Wards off Rd8+} 39. h4 $1 {[%emt 0:00:22]} e4 {[%emt 0:03:14]} 40. fxe4 $18 {[%emt 0:00:14]} Bc2 $2 {[%emt 0:03:07]} (40... Bxh4 41. gxh4 Qf4+ 42. Kg1 Qg4+ 43. Kf1 Qxh4) 41. Qa6 {[%emt 0:00:23]} Rb8 {[%emt 0:17:25]} 42. hxg5 {[%emt 0:00:06]} (42. Qa7 $142 Rf8 (42... Rxb5 43. Qa8+) 43. Bxf8 (43. hxg5 Bxd3 44. Bxd3 Qd2+ 45. Kh3 Qxd3 $11) 43... Bxd3 44. Bd6 (44. Bxd3 $2 Be3 $19)) 42... Bxd3 {[%emt 0:00:04]} 43. Bxd3 {[%emt 0:00:12] A strong pair of Bishops.} Rd8 {[%emt 0:02:35]} 44. Be7 {[%emt 0:08:41]} (44. Qxa5 Qd2+ (44... Rxd3 45. Qa8+) 45. Kh3 Qxd3 $17 (45... Rxd3 46. Be7 $11)) 44... Qxb2+ {[%emt 0:01:24]} 45. Be2 {[%emt 0:01:33]} Re8 {[%emt 0:00:05]} 46. Bf6 {[%emt 0:00:23][%cal Oe4e5]} a4 {[%emt 0:01:21]} 47. Kh3 {[%emt 0:02:12]} (47. Qxa4 $2 Qxe2+ 48. Kh3 Rb8 $19 (48... Rxe4 $2 49. Qa8+ Re8 50. Qc6 $19) (48... Qxe4 $2 49. Qxe4 Rxe4 50. Kg2 $19)) 47... Qc2 {[%emt 0:02:22]} (47... a3 $16) 48. Bf3 $1 {[%emt 0:00:58]} Qb3 {[%emt 0:01:27]} 49. g4 {[%emt 0:01:31]} (49. Qc6 Qe6+ 50. Qxe6 Rxe6 $15) ({White has to play} 49. Kh2 $1 $16) 49... a3 $11 {[%emt 0:00:27]} 50. Bd4 {[%emt 0:00:23]} Rd8 $1 {[%emt 0:01:30] And now ...Rxd4 would win.} (50... a2 51. Qf6 Kf8 52. Qh8+ Ke7 53. Qe5+ (53. Qxh7 $2 a1=Q $19) 53... Kd7 54. Qa5 $18) 51. Bf6 {[%emt 0:01:25]} Re8 {[%emt 0:01:33]} 52. Bd4 {[%emt 0:01:09] Threatens to win with Qf6.} Rd8 $1 {[%emt 0:00:00] White must now prevent ...Rxd4.} ({Much weaker is} 52... a2 $6 53. Qf6 Kf8 54. Qg7+ Ke7 55. Qe5+ (55. Qxh7 $2 {too greedy.} a1=Q $19) 55... Kd7 56. Qa5 $16) 53. Bf6 {[%emt 0:00:11]} Re8 {[%emt 0:00:44]} 54. Qc6 {[%emt 0:00:32]} Qe6 {[%emt 0:00:27] [#] White stays focused until the end.} (54... Rb8 $11) 55. Qa4 $1 $18 {[%emt 0:00:36]} a2 {[%emt 0:00:53]} 56. c4 {[%emt 0:00:01]} h5 $2 {[%emt 0:00:37]} (56... Rc8) 57. Qxa2 {[%emt 0:01:20]} (57. gxh6 $2 {is the wrong capture.} Qxf6 58. Qxe8+ Kh7 $19) 57... hxg4+ {[%emt 0:00:00]} (57... Rc8 {was worth a try.} 58. Qd2 Qxc4 59. gxh5 gxh5) 58. Kg3 {[%emt 0:00:15][%cal Oa2h2] White wants to mate with Qh2!} Qd6+ {[%emt 0:03:35]} 59. Kxg4 {[%emt 0:00:04]} Rb8 {[%emt 0:00:37]} 60. Kh3 {[%emt 0:01:20]} Qf4 {[%emt 0:01:08]} 61. Kg2 {[%emt 0:00:07]} Qe3 {[%emt 0:00:52]} 62. Qf2 {[%emt 0:00:22]} Qf4 {[%emt 0:00:23]} 63. Qg3 {[%emt 0:00:13]} Qd2+ {[%emt 0:01:11] [#]} 64. Kh3 $1 {[%emt 0:00:51]} Rb3 {[%emt 0:00:00]} 65. Kg4 {[%emt 0:00:43]} Qd7+ {[%emt 0:00:00]} 66. Kh4 {[%emt 0:01:26]} Qd2 {[%emt 0:00:42]} 67. c5 {[%emt 0:00:38] Hoping for c6.} Qc2 $2 {[%emt 0:00:39]} (67... Qc1 68. Bd4 Rb4) 68. Bd4 {[%emt 0:00:33][%cal Og3e5] White threatens Qe5! and mate.} f5 {[%emt 0:00:35] [#]} 69. Qe5 $1 {[%emt 0:00:22][%csl Gd4][%cal Re5g7]} Rb7 {[%emt 0:00:28]} (69... Kf8 70. exf5) 70. Qe8+ {[%emt 0:01:44] Weighted Error Value: White=0.21 (precise) /Black=0.31.  Loses game:     	---       	Black=1      Mistake:       	White=4     	Black=8      Inaccurate:     	White=2     	Black=5      OK:         	White=14    	Black=18     Best:        	White=9     	Black=6      Strong:       	White=4     	Black=5} 1-0

[Event "III Menorca Open-A 2024"]
[Site "Ciutadella Menorca"]
[Date "2024.04.02"]
[Round "1.7"]
[White "Hebbar, Eshaan"]
[Black "Pichot, Alan"]
[Result "0-1"]
[ECO "D63"]
[WhiteElo "2187"]
[BlackElo "2644"]
[Annotator "TA"]
[PlyCount "50"]
[EventDate "2024.04.02"]
[EventType "swiss"]
[EventCountry "ESP"]
[SourceTitle "playchess.com"]
[Source "ChessBase"]
[SourceQuality "1"]
[TimeControl "5400+30"]

{[%evp 22,50,41,16,29,0,0,0,0,-15,-11,-21,-13,-34,-24,-29,-16,-40,-52,-48,-45,-52,-44,-90,-75,-149,-106,-516,-512,-1250,-1250]} 1. d4 {[%emt 0:00:06]} Nf6 {[%emt 0:00:27]} 2. c4 {[%emt 0:00:14]} e6 {[%emt 0:00:17]} 3. Nf3 {[%emt 0:00:06]} d5 {[%emt 0:01:41]} 4. Nc3 {[%emt 0:00:20]} Nbd7 {[%emt 0:00:45]} 5. Bg5 {[%emt 0:06:53]} h6 {[%emt 0:02:44]} 6. Bh4 {[%emt 0:00:47]} dxc4 {[%emt 0:00:07]} 7. e3 {[%emt 0:02:24]} a6 {[%emt 0:01:10]} 8. a4 {[%emt 0:04:21]} c5 {[%emt 0:01:44]} 9. Bxc4 {[%emt 0:00:15]} cxd4 {[%emt 0:12:44]} 10. exd4 {[%emt 0:00:24]} Be7 {[%emt 0:00:17]} 11. O-O {[%emt 0:00:19]} O-O {[%emt 0:00:37]} 12. Rc1 {[%emt 0:02:53]} Nd5 {[%emt 0:12:04]} 13. Bxe7 {[%emt 0:12:25]} Nxe7 {[%emt 0:00:24]} 14. Qd3 {[%emt 0:10:20]} Nf6 {[%emt 0:06:54] The position is equal.} 15. Rfd1 {[%emt 0:05:47]} b6 {[%emt 0:03:25]} 16. Ne5 {[%emt 0:08:37]} Bb7 {[%emt 0:02:31] Wards off Qf3} 17. Ba2 {[%emt 0:03:31]} Qd6 {[%emt 0:02:53]} 18. Bb1 {[%emt 0:02:11][%cal Oe5g4]} Rfd8 {[%emt 0:00:37]} 19. f3 {[%emt 0:13:26]} Nf5 {[%emt 0:06:39]} 20. Ne2 {[%emt 0:01:22]} Rac8 {[%emt 0:09:57]} 21. Rxc8 {[%emt 0:10:02]} Rxc8 {[%emt 0:00:13]} 22. Ba2 {[%emt 0:01:24]} (22. Qd2 $15) 22... Nd5 {[%emt 0:02:50]} 23. Nc4 {[%emt 0:06:00]} ({White should play} 23. Bxd5 Qxd5 24. Nc3) 23... Qe7 {[%emt 0:02:14] ...Nb4 would now be deadly. Black is more active.} 24. Qb3 {[%emt 0:01:51][%mdl 8192]} (24. Qd2 $17) 24... Qg5 $19 {[%emt 0:02:15][%cal Oc8c4] And now ...Rxc4! would win.} 25. Re1 {[%emt 0:03:13] [#]} (25. f4 $142 Nxf4 26. Nxf4 Qxf4 27. Qd3) 25... Rxc4 $1 {[%emt 0:02:49][%mdl 512] Weighted Error Value: White=0.77/Black=0.08 (flawless) .  Loses game:     	White=1     	---        Mistake:       	White=3     	---        Inaccurate:     	White=1     	---        OK:         	White=4     	Black=6      Brilliant:      	---       	Black=1} 0-1